[Event "Titled Tuesday Blitz January 03 Late 2023"]
[White "Ibarra Jerez, Jose Carlos"]
[Black "Jobava, Baadur"]
[WhiteFideId "2226332"]
[BlackFideId "13601520"]
[WhiteElo "2563"]
[BlackElo "2578"]
[Result "0-1"]
[Round "10"]
[TimeControl "180+2"]
[Date "2023.01.03"]
[WhiteClock "0:00:27"]
[BlackClock "0:01:28"]

1. e4 {[%clk 0:03:00]}  d6 {[%clk 0:03:00]} 2. d4 {[%clk 0:03:00]}  Nf6 {[%clk 0:03:01]} 3. Nc3 {[%clk 0:03:00]}  e5 {[%clk 0:03:01]} 4. Nf3 {[%clk 0:02:59]}  Nbd7 {[%clk 0:03:01]} 5. Bc4 {[%clk 0:02:59]}  Be7 {[%clk 0:03:02]} 6. a4 {[%clk 0:02:59]}  O-O {[%clk 0:03:01]} 7. O-O {[%clk 0:03:00]}  a5 {[%clk 0:03:02]} 8. Re1 {[%clk 0:02:58]}  h6 {[%clk 0:03:03]} 9. Ba2 {[%clk 0:02:52]}  Re8 {[%clk 0:03:03]} 10. h3 {[%clk 0:02:52]}  c6 {[%clk 0:03:01]} 11. Be3 {[%clk 0:02:51]}  Bf8 {[%clk 0:03:01]} 12. Nd2 {[%clk 0:02:46]}  Nb6 {[%clk 0:02:57]} 13. f4 {[%clk 0:02:41]}  exf4 {[%clk 0:02:42]} 14. Bxf4 {[%clk 0:02:40]}  d5 {[%clk 0:02:41]} 15. e5 {[%clk 0:02:33]}  Nh7 {[%clk 0:02:41]} 16. Qf3 {[%clk 0:02:16]}  Be6 {[%clk 0:02:40]} 17. Bb1 {[%clk 0:02:12]}  Qh4 {[%clk 0:02:33]} 18. Ne2 {[%clk 0:02:05]}  Qxe1+ {[%clk 0:02:32]} 19. Kh2 {[%clk 0:01:51]}  Qh4 {[%clk 0:02:27]} 20. c3 {[%clk 0:01:50]}  Ng5 {[%clk 0:02:24]} 21. Qd3 {[%clk 0:01:42]}  Ne4 {[%clk 0:02:23]} 22. Nxe4 {[%clk 0:01:33]}  dxe4 {[%clk 0:02:24]} 23. Qxe4 {[%clk 0:01:34]}  g6 {[%clk 0:02:25]} 24. Qf3 {[%clk 0:01:23]}  Nd5 {[%clk 0:01:49]} 25. Bd2 {[%clk 0:01:17]}  Rad8 {[%clk 0:01:42]} 26. Ng3 {[%clk 0:01:13]}  Be7 {[%clk 0:01:36]} 27. Be1 {[%clk 0:01:00]}  Qf4 {[%clk 0:01:35]} 28. Qe2 {[%clk 0:00:53]}  Bh4 {[%clk 0:01:35]} 29. c4 {[%clk 0:00:40]}  Ne3 {[%clk 0:01:34]} 30. Ra3 {[%clk 0:00:34]}  Nf1+ {[%clk 0:01:28]} 31. Kg1 {[%clk 0:00:27]}  Nxg3 {[%clk 0:01:28]} 0-1


[Site "https://www.chess.com"]

[Event "Titled Tuesday Blitz January 03 Late 2023"]
[White "Shimanov, Aleksandr"]
[Black "Bryakin, Mikhail"]
[WhiteFideId "4198603"]
[BlackFideId "4165314"]
[WhiteElo "2581"]
[BlackElo "2455"]
[Result "1/2-1/2"]
[Round "10"]
[TimeControl "180+2"]
[Date "2023.01.03"]
[WhiteClock "0:00:19"]
[BlackClock "0:00:11"]

1. e4 {[%clk 0:02:55]}  d5 {[%clk 0:02:47]} 2. exd5 {[%clk 0:02:53]}  Qxd5 {[%clk 0:02:48]} 3. Nf3 {[%clk 0:02:54]}  Nc6 {[%clk 0:02:48]} 4. d4 {[%clk 0:02:52]}  Bg4 {[%clk 0:02:48]} 5. Be2 {[%clk 0:02:53]}  O-O-O {[%clk 0:02:46]} 6. c4 {[%clk 0:02:32]}  Qh5 {[%clk 0:02:35]} 7. d5 {[%clk 0:02:31]}  e6 {[%clk 0:02:29]} 8. Nc3 {[%clk 0:02:24]}  exd5 {[%clk 0:02:25]} 9. cxd5 {[%clk 0:02:23]}  Nf6 {[%clk 0:02:22]} 10. Qa4 {[%clk 0:02:10]}  Nxd5 {[%clk 0:01:56]} 11. h3 {[%clk 0:02:07]}  Nxc3 {[%clk 0:01:40]} 12. bxc3 {[%clk 0:02:05]}  Bxf3 {[%clk 0:01:35]} 13. gxf3 {[%clk 0:01:28]}  Qe5 {[%clk 0:01:29]} 14. Qc4 {[%clk 0:01:18]}  Bb4 {[%clk 0:01:12]} 15. Bb2 {[%clk 0:00:57]}  Rhe8 {[%clk 0:01:01]} 16. f4 {[%clk 0:00:53]}  Qd4 {[%clk 0:00:32]} 17. O-O {[%clk 0:00:46]}  Qxc4 {[%clk 0:00:25]} 18. Bxc4 {[%clk 0:00:47]}  Bd6 {[%clk 0:00:18]} 19. Bxf7 {[%clk 0:00:42]}  Re2 {[%clk 0:00:18]} 20. Bc1 {[%clk 0:00:41]}  Rf8 {[%clk 0:00:18]} 21. Bh5 {[%clk 0:00:41]}  Re7 {[%clk 0:00:13]} 22. f5 {[%clk 0:00:37]}  Be5 {[%clk 0:00:13]} 23. Ba3 {[%clk 0:00:35]}  Bd6 {[%clk 0:00:13]} 24. Bc1 {[%clk 0:00:29]}  Be5 {[%clk 0:00:13]} 25. Rb1 {[%clk 0:00:29]}  b6 {[%clk 0:00:08]} 26. Rd1 {[%clk 0:00:26]}  Rd8 {[%clk 0:00:08]} 27. Rxd8+ {[%clk 0:00:25]}  Nxd8 {[%clk 0:00:09]} 28. Bg5 {[%clk 0:00:22]}  Bf6 {[%clk 0:00:09]} 29. Be3 {[%clk 0:00:19]}  Bxc3 {[%clk 0:00:08]} 30. Rc1 {[%clk 0:00:20]}  Bf6 {[%clk 0:00:08]} 31. Kg2 {[%clk 0:00:20]}  Nb7 {[%clk 0:00:09]} 32. Kf3 {[%clk 0:00:20]}  Nd6 {[%clk 0:00:09]} 33. Bg4 {[%clk 0:00:20]}  Kd8 {[%clk 0:00:09]} 34. Bf4 {[%clk 0:00:19]}  Be5 {[%clk 0:00:09]} 35. Bg5 {[%clk 0:00:20]}  Bf6 {[%clk 0:00:10]} 36. Bf4 {[%clk 0:00:20]}  Be5 {[%clk 0:00:10]} 37. Be3 {[%clk 0:00:20]}  c5 {[%clk 0:00:09]} 38. Rd1 {[%clk 0:00:19]}  Kc7 {[%clk 0:00:10]} 39. h4 {[%clk 0:00:19]}  Nc4 {[%clk 0:00:09]} 40. Bg5 {[%clk 0:00:18]}  Bf6 {[%clk 0:00:10]} 41. Bf4+ {[%clk 0:00:18]}  Be5 {[%clk 0:00:10]} 42. Bg5 {[%clk 0:00:18]}  Bf6 {[%clk 0:00:10]} 43. Bf4+ {[%clk 0:00:18]}  Be5 {[%clk 0:00:11]} 44. Bg5 {[%clk 0:00:19]} 1/2-1/2


[Site "https://www.chess.com"]

[Event "Titled Tuesday Blitz January 03 Late 2023"]
[White "Kravtsiv, Martyn"]
[Black "Sai Krishna G V"]
[WhiteFideId "14113147"]
[BlackFideId "5028280"]
[WhiteElo "2598"]
[BlackElo "2384"]
[Result "1-0"]
[Round "10"]
[TimeControl "180+2"]
[Date "2023.01.03"]
[WhiteClock "0:01:03"]
[BlackClock "0:00:22"]

1. e4 {[%clk 0:03:00]}  e5 {[%clk 0:03:00]} 2. Nf3 {[%clk 0:03:01]}  Nc6 {[%clk 0:03:00]} 3. Nc3 {[%clk 0:03:01]}  Nf6 {[%clk 0:03:00]} 4. a4 {[%clk 0:03:01]}  Bb4 {[%clk 0:02:58]} 5. Bd3 {[%clk 0:02:59]}  d6 {[%clk 0:02:53]} 6. O-O {[%clk 0:02:56]}  Bg4 {[%clk 0:02:50]} 7. h3 {[%clk 0:02:52]}  Bh5 {[%clk 0:02:49]} 8. Nd5 {[%clk 0:02:52]}  Nxd5 {[%clk 0:02:30]} 9. exd5 {[%clk 0:02:51]}  Ne7 {[%clk 0:02:31]} 10. c3 {[%clk 0:02:49]}  Bc5 {[%clk 0:02:28]} 11. b4 {[%clk 0:02:49]}  Nxd5 {[%clk 0:01:56]} 12. bxc5 {[%clk 0:02:48]}  Nf4 {[%clk 0:01:57]} 13. Bb1 {[%clk 0:02:28]}  Qf6 {[%clk 0:01:45]} 14. d4 {[%clk 0:02:19]}  Nxh3+ {[%clk 0:01:41]} 15. Kh2 {[%clk 0:02:18]}  Nf4 {[%clk 0:01:37]} 16. cxd6 {[%clk 0:02:10]}  cxd6 {[%clk 0:01:34]} 17. Re1 {[%clk 0:02:00]}  O-O {[%clk 0:01:30]} 18. Bxf4 {[%clk 0:01:50]}  Qxf4+ {[%clk 0:01:25]} 19. Kg1 {[%clk 0:01:51]}  Rfe8 {[%clk 0:01:17]} 20. Qd3 {[%clk 0:01:49]}  e4 {[%clk 0:00:56]} 21. Rxe4 {[%clk 0:01:48]}  Qc1+ {[%clk 0:00:56]} 22. Qf1 {[%clk 0:01:26]}  Qxc3 {[%clk 0:00:46]} 23. Ra2 {[%clk 0:01:11]}  Bxf3 {[%clk 0:00:40]} 24. gxf3 {[%clk 0:01:11]}  d5 {[%clk 0:00:34]} 25. Rxe8+ {[%clk 0:01:08]}  Rxe8 {[%clk 0:00:35]} 26. Re2 {[%clk 0:01:07]}  Rxe2 {[%clk 0:00:30]} 27. Qxe2 {[%clk 0:01:06]}  g6 {[%clk 0:00:31]} 28. Qe8+ {[%clk 0:01:03]}  Kg7 {[%clk 0:00:30]} 29. Qe5+ {[%clk 0:01:04]}  f6 {[%clk 0:00:27]} 30. Qe7+ {[%clk 0:01:03]}  Kh6 {[%clk 0:00:27]} 31. Qe3+ {[%clk 0:01:02]}  Qxe3 {[%clk 0:00:25]} 32. fxe3 {[%clk 0:01:03]}  Kg5 {[%clk 0:00:22]} 33. Ba2 {[%clk 0:01:03]} 1-0


[Site "https://www.chess.com"]

[Event "Titled Tuesday Blitz January 03 Late 2023"]
[White "Chen, Justin"]
[Black "Nakamura, Hikaru"]
[WhiteFideId "2098199"]
[BlackFideId "2016192"]
[WhiteElo "2333"]
[BlackElo "2775"]
[Result "0-1"]
[Round "10"]
[TimeControl "180+2"]
[Date "2023.01.03"]
[WhiteClock "0:00:01"]
[BlackClock "0:01:22"]

1. d4 {[%clk 0:03:00]}  g6 {[%clk 0:03:00]} 2. c4 {[%clk 0:03:00]}  Bg7 {[%clk 0:02:59]} 3. Nc3 {[%clk 0:03:01]}  c5 {[%clk 0:03:00]} 4. d5 {[%clk 0:03:01]}  Bxc3+ {[%clk 0:03:01]} 5. bxc3 {[%clk 0:03:02]}  f5 {[%clk 0:03:01]} 6. e4 {[%clk 0:03:03]}  fxe4 {[%clk 0:03:00]} 7. f3 {[%clk 0:03:03]}  Qa5 {[%clk 0:02:58]} 8. Qc2 {[%clk 0:03:00]}  Nf6 {[%clk 0:02:55]} 9. fxe4 {[%clk 0:03:01]}  d6 {[%clk 0:02:52]} 10. Nf3 {[%clk 0:02:42]}  Bg4 {[%clk 0:02:51]} 11. Ng5 {[%clk 0:02:34]}  h6 {[%clk 0:02:48]} 12. e5 {[%clk 0:02:15]}  Bf5 {[%clk 0:02:47]} 13. Bd3 {[%clk 0:02:09]}  hxg5 {[%clk 0:02:38]} 14. exf6 {[%clk 0:01:48]}  exf6 {[%clk 0:02:36]} 15. Bxf5 {[%clk 0:01:27]}  gxf5 {[%clk 0:02:36]} 16. Qe2+ {[%clk 0:01:25]}  Kd8 {[%clk 0:02:34]} 17. O-O {[%clk 0:01:25]}  Nd7 {[%clk 0:02:20]} 18. Rb1 {[%clk 0:01:05]}  Kc7 {[%clk 0:02:18]} 19. Rb5 {[%clk 0:00:59]}  Qa4 {[%clk 0:02:16]} 20. Rxf5 {[%clk 0:00:17]}  Rae8 {[%clk 0:02:14]} 21. Qf1 {[%clk 0:00:15]}  Re4 {[%clk 0:02:08]} 22. h3 {[%clk 0:00:01]}  Rhe8 {[%clk 0:02:07]} 23. Kh2 {[%clk 0:00:01]}  Re1 {[%clk 0:02:06]} 24. Qf3 {[%clk 0:00:02]}  Rxc1 {[%clk 0:02:04]} 25. Rxf6 {[%clk 0:00:02]}  Nxf6 {[%clk 0:02:03]} 26. Qxf6 {[%clk 0:00:03]}  Rce1 {[%clk 0:02:03]} 27. Qf7+ {[%clk 0:00:01]}  R1e7 {[%clk 0:02:03]} 28. Qf1 {[%clk 0:00:01]}  b6 {[%clk 0:01:26]} 29. Qd3 {[%clk 0:00:01]}  Qxa2 {[%clk 0:01:22]} 30. Rb1 {[%clk 0:00:01]}  Qe2 {[%clk 0:01:22]} 0-1


[Site "https://www.chess.com"]

[Event "Titled Tuesday Blitz January 03 Late 2023"]
[White "Nasuta, Grzegorz"]
[Black "Bortnyk, Olexandr"]
[WhiteFideId "1141686"]
[BlackFideId "14120828"]
[WhiteElo "2552"]
[BlackElo "2605"]
[Result "0-1"]
[Round "10"]
[TimeControl "180+2"]
[Date "2023.01.03"]
[WhiteClock "0:00:02"]
[BlackClock "0:00:06"]

1. e4 {[%clk 0:03:00]}  Nf6 {[%clk 0:02:47]} 2. e5 {[%clk 0:03:00]}  Nd5 {[%clk 0:02:47]} 3. d4 {[%clk 0:03:00]}  d6 {[%clk 0:02:47]} 4. c4 {[%clk 0:02:59]}  Nb6 {[%clk 0:02:47]} 5. exd6 {[%clk 0:02:59]}  exd6 {[%clk 0:02:48]} 6. Nc3 {[%clk 0:02:59]}  Be7 {[%clk 0:02:47]} 7. Be3 {[%clk 0:02:59]}  O-O {[%clk 0:02:46]} 8. Bd3 {[%clk 0:02:59]}  Nc6 {[%clk 0:02:46]} 9. Nge2 {[%clk 0:02:55]}  Bg4 {[%clk 0:02:44]} 10. b3 {[%clk 0:02:48]}  Bf6 {[%clk 0:02:29]} 11. Qd2 {[%clk 0:02:48]}  Re8 {[%clk 0:02:29]} 12. O-O {[%clk 0:02:48]}  Bh5 {[%clk 0:02:28]} 13. Nf4 {[%clk 0:02:39]}  Bg6 {[%clk 0:02:27]} 14. Nxg6 {[%clk 0:02:30]}  hxg6 {[%clk 0:02:28]} 15. Ne2 {[%clk 0:02:04]}  d5 {[%clk 0:02:27]} 16. c5 {[%clk 0:02:03]}  Nd7 {[%clk 0:02:27]} 17. b4 {[%clk 0:02:01]}  a6 {[%clk 0:02:26]} 18. Rad1 {[%clk 0:01:46]}  Nf8 {[%clk 0:02:23]} 19. a4 {[%clk 0:01:46]}  Ne6 {[%clk 0:02:23]} 20. Bb1 {[%clk 0:01:45]}  a5 {[%clk 0:02:22]} 21. b5 {[%clk 0:01:45]}  Nb4 {[%clk 0:02:22]} 22. g3 {[%clk 0:01:41]}  c6 {[%clk 0:02:20]} 23. h4 {[%clk 0:01:38]}  Qd7 {[%clk 0:01:52]} 24. b6 {[%clk 0:01:32]}  Re7 {[%clk 0:01:53]} 25. Kg2 {[%clk 0:01:31]}  Rae8 {[%clk 0:01:53]} 26. Rh1 {[%clk 0:01:31]}  Qc8 {[%clk 0:01:35]} 27. Rh3 {[%clk 0:01:29]}  Nf8 {[%clk 0:01:20]} 28. Ng1 {[%clk 0:01:06]}  Qg4 {[%clk 0:00:30]} 29. Nf3 {[%clk 0:01:05]}  Qh5 {[%clk 0:00:27]} 30. Rdh1 {[%clk 0:01:00]}  Nd7 {[%clk 0:00:12]} 31. Nh2 {[%clk 0:01:00]}  Re6 {[%clk 0:00:09]} 32. g4 {[%clk 0:00:59]}  Qh8 {[%clk 0:00:09]} 33. Nf3 {[%clk 0:00:47]}  Bd8 {[%clk 0:00:09]} 34. h5 {[%clk 0:00:32]}  g5 {[%clk 0:00:10]} 35. Bf5 {[%clk 0:00:19]}  Nf6 {[%clk 0:00:08]} 36. Nxg5 {[%clk 0:00:18]}  R6e7 {[%clk 0:00:05]} 37. Bb1 {[%clk 0:00:04]}  Nxg4 {[%clk 0:00:05]} 38. Bh7+ {[%clk 0:00:01]}  Kf8 {[%clk 0:00:06]} 39. Bb1 {[%clk 0:00:02]}  Rxe3 {[%clk 0:00:05]} 40. fxe3 {[%clk 0:00:03]}  Bxg5 {[%clk 0:00:05]} 41. Rg3 {[%clk 0:00:02]}  Nxe3+ {[%clk 0:00:06]} 42. Kf3 {[%clk 0:00:02]}  Qh6 {[%clk 0:00:06]} 0-1


[Site "https://www.chess.com"]

[Event "Titled Tuesday Blitz January 03 Late 2023"]
[White "Paravyan, David"]
[Black "Morefield, Jason"]
[WhiteFideId "4194985"]
[BlackFideId "30920825"]
[WhiteElo "2601"]
[BlackElo "2167"]
[Result "0-1"]
[Round "10"]
[TimeControl "180+2"]
[Date "2023.01.03"]
[WhiteClock "0:01:33"]
[BlackClock "0:00:08"]

1. e4 {[%clk 0:03:00]}  c5 {[%clk 0:02:58]} 2. Nf3 {[%clk 0:03:01]}  d6 {[%clk 0:02:58]} 3. d4 {[%clk 0:03:00]}  cxd4 {[%clk 0:02:59]} 4. Nxd4 {[%clk 0:03:01]}  Nf6 {[%clk 0:02:59]} 5. Nc3 {[%clk 0:03:02]}  Nc6 {[%clk 0:03:00]} 6. Bg5 {[%clk 0:03:02]}  e6 {[%clk 0:02:59]} 7. Qd2 {[%clk 0:03:02]}  a6 {[%clk 0:03:00]} 8. Nxc6 {[%clk 0:03:02]}  bxc6 {[%clk 0:02:57]} 9. O-O-O {[%clk 0:03:03]}  Be7 {[%clk 0:02:53]} 10. Bxf6 {[%clk 0:03:03]}  gxf6 {[%clk 0:02:51]} 11. Bc4 {[%clk 0:03:03]}  Bb7 {[%clk 0:02:48]} 12. Rhe1 {[%clk 0:03:04]}  d5 {[%clk 0:02:33]} 13. Bb3 {[%clk 0:02:58]}  O-O {[%clk 0:02:26]} 14. Kb1 {[%clk 0:02:51]}  Kh8 {[%clk 0:02:21]} 15. Qh6 {[%clk 0:02:47]}  Rg8 {[%clk 0:02:16]} 16. Qh5 {[%clk 0:02:47]}  Rg6 {[%clk 0:02:14]} 17. f4 {[%clk 0:02:47]}  Qg8 {[%clk 0:02:00]} 18. g3 {[%clk 0:02:48]}  Bb4 {[%clk 0:01:56]} 19. Rd3 {[%clk 0:02:30]}  a5 {[%clk 0:01:49]} 20. a3 {[%clk 0:02:30]}  Bf8 {[%clk 0:01:16]} 21. Qe2 {[%clk 0:02:23]}  Ba6 {[%clk 0:01:16]} 22. f5 {[%clk 0:02:22]}  Rg5 {[%clk 0:01:11]} 23. fxe6 {[%clk 0:02:22]}  fxe6 {[%clk 0:01:11]} 24. exd5 {[%clk 0:02:22]}  Re5 {[%clk 0:00:57]} 25. Qd1 {[%clk 0:02:22]}  Rxe1 {[%clk 0:00:57]} 26. Qxe1 {[%clk 0:02:22]}  Bxd3 {[%clk 0:00:57]} 27. dxe6 {[%clk 0:02:23]}  Bg6 {[%clk 0:00:26]} 28. Na4 {[%clk 0:02:23]}  Be7 {[%clk 0:00:22]} 29. Ka2 {[%clk 0:02:23]}  Qd8 {[%clk 0:00:20]} 30. Qe3 {[%clk 0:02:23]}  Qd6 {[%clk 0:00:17]} 31. Nb6 {[%clk 0:02:22]}  Rd8 {[%clk 0:00:15]} 32. Nd7 {[%clk 0:02:22]}  Be8 {[%clk 0:00:10]} 33. Qb6 {[%clk 0:02:06]}  a4 {[%clk 0:00:09]} 34. Bc4 {[%clk 0:02:06]}  Bxd7 {[%clk 0:00:09]} 35. exd7 {[%clk 0:02:07]}  Qxd7 {[%clk 0:00:09]} 36. Qa6 {[%clk 0:02:06]}  c5 {[%clk 0:00:08]} 37. Qa5 {[%clk 0:02:04]}  Rb8 {[%clk 0:00:05]} 38. Qa6 {[%clk 0:01:58]}  Qb7 {[%clk 0:00:04]} 39. Qxb7 {[%clk 0:01:53]}  Rxb7 {[%clk 0:00:05]} 40. Bd5 {[%clk 0:01:54]}  Rb6 {[%clk 0:00:05]} 41. Bf7 {[%clk 0:01:54]}  Kg7 {[%clk 0:00:06]} 42. Be8 {[%clk 0:01:54]}  Ra6 {[%clk 0:00:06]} 43. Bb5 {[%clk 0:01:54]}  Ra5 {[%clk 0:00:06]} 44. Bc4 {[%clk 0:01:50]}  f5 {[%clk 0:00:06]} 45. Kb1 {[%clk 0:01:48]}  Kf6 {[%clk 0:00:06]} 46. c3 {[%clk 0:01:48]}  h6 {[%clk 0:00:06]} 47. Kc2 {[%clk 0:01:48]}  Ke5 {[%clk 0:00:06]} 48. Bd3 {[%clk 0:01:47]}  Bg5 {[%clk 0:00:05]} 49. Bc4 {[%clk 0:01:47]}  Be3 {[%clk 0:00:06]} 50. Bd3 {[%clk 0:01:47]}  Bg1 {[%clk 0:00:06]} 51. h3 {[%clk 0:01:47]}  h5 {[%clk 0:00:05]} 52. Be2 {[%clk 0:01:47]}  h4 {[%clk 0:00:05]} 53. gxh4 {[%clk 0:01:47]}  Kf4 {[%clk 0:00:04]} 54. h5 {[%clk 0:01:47]}  Kg3 {[%clk 0:00:04]} 55. Kd3 {[%clk 0:01:46]}  Ra8 {[%clk 0:00:03]} 56. Kc4 {[%clk 0:01:44]}  f4 {[%clk 0:00:04]} 57. Bd3 {[%clk 0:01:42]}  f3 {[%clk 0:00:04]} 58. Kb5 {[%clk 0:01:42]}  Kxh3 {[%clk 0:00:03]} 59. h6 {[%clk 0:01:42]}  Bf2 {[%clk 0:00:02]} 60. h7 {[%clk 0:01:42]}  Rh8 {[%clk 0:00:02]} 61. Kxa4 {[%clk 0:01:41]}  Kg2 {[%clk 0:00:02]} 62. Kb5 {[%clk 0:01:41]}  Be3 {[%clk 0:00:03]} 63. a4 {[%clk 0:01:42]}  f2 {[%clk 0:00:04]} 64. a5 {[%clk 0:01:41]}  f1=Q {[%clk 0:00:04]} 65. Bxf1+ {[%clk 0:01:41]}  Kxf1 {[%clk 0:00:05]} 66. b4 {[%clk 0:01:29]}  cxb4 {[%clk 0:00:06]} 67. cxb4 {[%clk 0:01:30]}  Rxh7 {[%clk 0:00:06]} 68. Ka6 {[%clk 0:01:31]}  Ke2 {[%clk 0:00:07]} 69. b5 {[%clk 0:01:31]}  Kd3 {[%clk 0:00:07]} 70. b6 {[%clk 0:01:32]}  Bf4 {[%clk 0:00:07]} 71. Kb5 {[%clk 0:01:32]}  Bb8 {[%clk 0:00:07]} 72. a6 {[%clk 0:01:32]}  Kd4 {[%clk 0:00:08]} 73. Kc6 {[%clk 0:01:32]}  Rg7 {[%clk 0:00:05]} 74. b7 {[%clk 0:01:32]}  Ba7 {[%clk 0:00:05]} 75. Kd6 {[%clk 0:01:31]}  Kc4 {[%clk 0:00:06]} 76. Kc6 {[%clk 0:01:31]}  Kb4 {[%clk 0:00:06]} 77. b8=Q+ {[%clk 0:01:32]}  Bxb8 {[%clk 0:00:06]} 78. Kb6 {[%clk 0:01:33]}  Ba7+ {[%clk 0:00:07]} 79. Kc6 {[%clk 0:01:33]}  Ka5 {[%clk 0:00:08]} 0-1


[Site "https://www.chess.com"]

[Event "Titled Tuesday Blitz January 03 Late 2023"]
[White "Lazavik, Denis"]
[Black "Garcia Ramos, Daniel"]
[WhiteFideId "13515110"]
[BlackFideId "32010311"]
[WhiteElo "2544"]
[BlackElo "2442"]
[Result "0-1"]
[Round "10"]
[TimeControl "180+2"]
[Date "2023.01.03"]
[WhiteClock "0:00:09"]
[BlackClock "0:00:03"]

1. d4 {[%clk 0:03:00]}  Nf6 {[%clk 0:02:59]} 2. c4 {[%clk 0:03:01]}  e6 {[%clk 0:02:59]} 3. Nf3 {[%clk 0:03:02]}  d5 {[%clk 0:02:56]} 4. g3 {[%clk 0:03:02]}  Bb4+ {[%clk 0:02:55]} 5. Bd2 {[%clk 0:03:02]}  Be7 {[%clk 0:02:54]} 6. Bg2 {[%clk 0:03:03]}  O-O {[%clk 0:02:54]} 7. O-O {[%clk 0:03:04]}  c6 {[%clk 0:02:54]} 8. Qc2 {[%clk 0:03:04]}  Nbd7 {[%clk 0:02:52]} 9. Bf4 {[%clk 0:03:04]}  b6 {[%clk 0:02:50]} 10. cxd5 {[%clk 0:03:04]}  Nxd5 {[%clk 0:02:49]} 11. Qxc6 {[%clk 0:03:03]}  Ba6 {[%clk 0:02:46]} 12. Re1 {[%clk 0:03:03]}  Nxf4 {[%clk 0:02:42]} 13. gxf4 {[%clk 0:03:02]}  Rc8 {[%clk 0:02:38]} 14. Qa4 {[%clk 0:03:02]}  Bb7 {[%clk 0:02:37]} 15. Nc3 {[%clk 0:02:58]}  a6 {[%clk 0:02:36]} 16. e3 {[%clk 0:02:56]}  b5 {[%clk 0:02:36]} 17. Qb3 {[%clk 0:02:57]}  Nb6 {[%clk 0:02:35]} 18. Ne5 {[%clk 0:02:56]}  Bxg2 {[%clk 0:02:34]} 19. Kxg2 {[%clk 0:02:57]}  Nc4 {[%clk 0:02:30]} 20. Nxc4 {[%clk 0:02:56]}  Rxc4 {[%clk 0:02:29]} 21. Rac1 {[%clk 0:02:52]}  Qa8+ {[%clk 0:02:29]} 22. Kg1 {[%clk 0:02:50]}  Rfc8 {[%clk 0:02:20]} 23. Ne2 {[%clk 0:02:42]}  Qf3 {[%clk 0:02:08]} 24. Rxc4 {[%clk 0:02:41]}  Rxc4 {[%clk 0:02:08]} 25. Ng3 {[%clk 0:02:36]}  h5 {[%clk 0:02:06]} 26. Qd1 {[%clk 0:02:35]}  Qxd1 {[%clk 0:02:04]} 27. Rxd1 {[%clk 0:02:36]}  Rc2 {[%clk 0:02:02]} 28. Rb1 {[%clk 0:02:36]}  h4 {[%clk 0:01:59]} 29. Ne4 {[%clk 0:02:35]}  f5 {[%clk 0:01:53]} 30. Nc3 {[%clk 0:02:27]}  b4 {[%clk 0:01:53]} 31. Na4 {[%clk 0:02:21]}  h3 {[%clk 0:01:52]} 32. Rf1 {[%clk 0:02:12]}  Kf7 {[%clk 0:01:45]} 33. f3 {[%clk 0:01:44]}  Bh4 {[%clk 0:01:39]} 34. e4 {[%clk 0:01:42]}  Rg2+ {[%clk 0:01:38]} 35. Kh1 {[%clk 0:01:41]}  Bf2 {[%clk 0:01:36]} 36. d5 {[%clk 0:01:37]}  exd5 {[%clk 0:01:34]} 37. exd5 {[%clk 0:01:36]}  Ke7 {[%clk 0:01:29]} 38. a3 {[%clk 0:01:29]}  a5 {[%clk 0:01:29]} 39. axb4 {[%clk 0:01:29]}  axb4 {[%clk 0:01:30]} 40. b3 {[%clk 0:01:29]}  Kd6 {[%clk 0:01:29]} 41. Nb2 {[%clk 0:01:29]}  Kxd5 {[%clk 0:01:23]} 42. Nd3 {[%clk 0:01:29]}  Be3 {[%clk 0:01:19]} 43. Nxb4+ {[%clk 0:01:29]}  Kc5 {[%clk 0:01:18]} 44. Nd3+ {[%clk 0:01:29]}  Kd4 {[%clk 0:01:18]} 45. Rd1 {[%clk 0:01:29]}  Kc3 {[%clk 0:01:15]} 46. Ne5 {[%clk 0:00:45]}  Bxf4 {[%clk 0:01:14]} 47. Nd3 {[%clk 0:00:46]}  Rxh2+ {[%clk 0:01:13]} 48. Kg1 {[%clk 0:00:46]}  Rg2+ {[%clk 0:01:13]} 49. Kh1 {[%clk 0:00:47]}  Bg3 {[%clk 0:01:08]} 50. Nc5 {[%clk 0:00:42]}  g5 {[%clk 0:01:03]} 51. Rc1+ {[%clk 0:00:38]}  Kd2 {[%clk 0:01:01]} 52. Ra1 {[%clk 0:00:38]}  Ke3 {[%clk 0:00:57]} 53. b4 {[%clk 0:00:28]}  Kxf3 {[%clk 0:00:56]} 54. Rf1+ {[%clk 0:00:24]}  Kg4 {[%clk 0:00:53]} 55. Nd3 {[%clk 0:00:23]}  Rd2 {[%clk 0:00:49]} 56. Nc5 {[%clk 0:00:23]}  Bd6 {[%clk 0:00:40]} 57. Nd7 {[%clk 0:00:17]}  Kg3 {[%clk 0:00:34]} 58. Nf6 {[%clk 0:00:16]}  Bxb4 {[%clk 0:00:26]} 59. Nh5+ {[%clk 0:00:15]}  Kh4 {[%clk 0:00:27]} 60. Ng7 {[%clk 0:00:15]}  f4 {[%clk 0:00:23]} 61. Nf5+ {[%clk 0:00:16]}  Kh5 {[%clk 0:00:23]} 62. Ng7+ {[%clk 0:00:14]}  Kg6 {[%clk 0:00:23]} 63. Ne6 {[%clk 0:00:15]}  Bd6 {[%clk 0:00:22]} 64. Rg1 {[%clk 0:00:15]}  Rg2 {[%clk 0:00:08]} 65. Rd1 {[%clk 0:00:15]}  Be5 {[%clk 0:00:07]} 66. Re1 {[%clk 0:00:15]}  Kf5 {[%clk 0:00:06]} 67. Nc5 {[%clk 0:00:15]}  Rc2 {[%clk 0:00:06]} 68. Nd3 {[%clk 0:00:15]}  Bd6 {[%clk 0:00:07]} 69. Ra1 {[%clk 0:00:15]}  g4 {[%clk 0:00:05]} 70. Ne1 {[%clk 0:00:14]}  Re2 {[%clk 0:00:05]} 71. Ra5+ {[%clk 0:00:14]}  Ke6 {[%clk 0:00:05]} 72. Nd3 {[%clk 0:00:13]}  f3 {[%clk 0:00:05]} 73. Ra6 {[%clk 0:00:13]}  Rd2 {[%clk 0:00:04]} 74. Ne1 {[%clk 0:00:09]}  f2 {[%clk 0:00:03]} 0-1


[Site "https://www.chess.com"]